bitfinex/quotes_ETHUSD_20240827
["timestamp","ask_amount","ask_price","bid_price","bid_amount"]
[1724754781119,3.77411,2649.7,2649.5,8.6937]
[1724754781316,3.77415,2649.6,2649.5,8.6937]
[1724754781530,3.77415,2649.6,2648.9,8.5216]
[1724754781803,3.77387,2649.8,2649.0,3.77499]
[1724754782004,0.11820003,2649.7,2649.2,12.3789]
[1724754782205,0.11820003,2649.6,2649.4,3.77442]
[1724754782439,0.11820003,2649.5,2649.4,8.6042]
[1724754782840,0.11820003,2649.5,2649.4,12.37863]
[1724754783047,0.11820003,2649.5,2649.4,10.219524]
[1724754783915,0.11820003,2649.5,2649.4,13.993954]
[1724754784317,0.11820003,2649.5,2649.4,10.219524]
[1724754784913,0.11820003,2649.5,2649.4,17.768384]
[1724754785168,3.77296,2650.5,2649.4,17.768384]
[1724754785169,3.07651856,2650.7,2649.5,9.2597]
[1724754785330,3.77344,2650.1,2649.5,11.0365384]
[1724754785523,0.11818861,2650.0,2649.5,9.2597]
[1724754785717,0.11818861,2649.9,2649.5,13.03398]
[1724754785948,3.0,2650.2,2649.8,3.77386]
[1724754786225,0.11818285,2650.1,2649.7,13.03363]
[1724754786418,0.11818285,2650.0,2649.8,3.84930099]
[1724754786623,0.11818285,2649.9,2649.8,9.33517099]
[1724754786864,0.11818285,2649.9,2649.8,9.2597]
[1724754787619,0.11818285,2649.9,2649.8,14.336942]
[1724754787828,0.11818285,2649.9,2649.8,10.563082]
[1724754788230,3.77332,2650.2,2649.8,9.2597]
[1724754788447,0.11818004,2649.9,2649.8,9.2597]
[1724754791548,0.11818674,2649.9,2649.8,9.2597]
[1724754791923,0.11818674,2649.9,2649.4,9.2577]
[1724754792120,0.11818674,2649.8,2649.5,3.84968285]
[1724754792347,0.11818674,2649.7,2649.6,12.69275]
[1724754792525,1.54790822,2650.1,2649.8,8.8402]
[1724754792725,0.11817577,2650.0,2649.9,0.88402]
[1724754793036,0.11817577,2650.0,2649.8,8.8402]
[1724754793236,0.11817577,2649.9,2649.8,12.61406]
[1724754793472,0.11817577,2650.1,2649.8,12.61406]
[1724754793622,0.11817666,2650.0,2649.9,0.68134893]
[1724754793952,0.11817666,2650.0,2649.9,17.06898893]
[1724754794151,0.11817666,2650.0,2649.9,16.46310749]
[1724754794355,0.11817666,2650.0,2649.9,12.68938749]
[1724754794653,1.54790822,2650.4,2649.9,16.46310749]
[1724754794858,1.54790822,2650.4,2650.0,1.64631075]
[1724754795042,0.11816745,2650.3,2650.1,0.07546009]
[1724754795363,0.11816745,2650.2,2650.1,0.07546009]
[1724754795988,5.43944567,2650.2,2649.9,8.8402]
[1724754796140,1.66607567,2650.1,2649.9,8.8402]
[1724754796338,1.66607567,2650.0,2649.9,8.8402]
[1724754796652,5.43965567,2650.0,2649.5,8.7077]
[1724754796843,0.11816745,2649.9,2649.5,8.7077]
[1724754797044,0.11816745,2649.8,2649.5,8.7077]
[1724754797384,5.32148822,2650.0,2649.5,8.7077]
[1724754797385,0.11816745,2649.7,2649.5,8.7077]
[1724754797545,0.11816745,2649.6,2649.5,8.7077]
[1724754797882,1.54790822,2649.8,2649.5,8.7077]
[1724754798041,0.11819021,2649.6,2649.5,14.107658]
[1724754798245,1.54790822,2649.9,2649.5,14.107538]
[1724754798582,1.94039564,2650.1,2649.7,9.131]
[1724754798583,2.05857829,2649.8,2649.7,9.131]
[1724754798894,0.11818265,2649.8,2649.7,9.131]
[1724754799187,2.05858795,2649.8,2649.4,8.7579]
[1724754799392,1.67046544,2649.7,2649.4,8.7579]
[1724754799587,0.11819231,2649.6,2649.4,8.7579]
[1724754800147,0.11819231,2649.6,2649.5,10.70057618]
[1724754800370,0.11819231,2649.6,2649.5,25.12622498]
[1724754800555,1.94039564,2650.2,2649.6,8.7579]
[1724754800556,3.49266877,2650.2,2649.6,8.7579]
[1724754800745,0.11816297,2650.1,2649.9,3.77361]
[1724754800963,1.55227313,2650.1,2650.0,0.07546314]
[1724754801153,1.67043878,2650.1,2650.0,0.07546314]
[1724754801448,0.11816565,2650.1,2650.0,12.60694314]
[1724754801664,0.11816565,2650.1,2650.0,14.55266331]
[1724754802050,0.11816565,2650.1,2650.0,10.77908331]
[1724754802250,0.11816565,2650.1,2650.0,8.83336314]
[1724754802484,2.05856129,2650.1,2650.0,8.83336314]
[1724754802694,1.67054758,2650.1,2650.0,8.7579]
[1724754802875,0.11816565,2650.1,2650.0,14.162003]
[1724754803695,0.11816565,2650.1,2650.0,17.935583]
[1724754803847,1.55238193,2650.6,2650.3,3.77302]
[1724754804054,0.11814523,2650.5,2650.4,13.01542249]
[1724754804256,0.11814523,2650.5,2650.4,19.86495105]
[1724754804554,1.55238193,2651.0,2650.9,3.7723]
[1724754804900,1.94141452,2651.2,2651.0,9.167]
[1724754804901,1.55238193,2651.1,2651.0,9.167]
[1724754805198,2.05954117,2651.1,2651.0,9.167]
[1724754805499,2.05954117,2651.1,2650.7,9.167]
[1724754805702,1.55249228,2650.8,2650.3,8.7921]
[1724754805869,1.55230523,2650.5,2650.3,8.7921]
[1724754806078,0.11812665,2650.4,2650.3,16.3384]
[1724754806262,1.55230523,2650.8,2650.3,12.56525]
[1724754806597,1.67044794,2650.7,2650.3,12.56525]
[1724754806901,0.11814271,2650.6,2650.3,8.7921]
[1724754807100,1.67044794,2650.6,2650.3,8.7921]
[1724754807306,1.55230523,2650.4,2650.3,8.7921]
[1724754807811,2.05842615,2650.4,2650.0,8.6817]
[1724754808011,1.5518724,2650.2,2650.0,8.6817]
[1724754808218,0.118165,2650.1,2650.0,8.6817]
[1724754808425,0.118165,2650.1,2649.3,3.77451]
[1724754808718,1.55153616,2649.9,2649.5,3.77426]
[1724754808872,0.118165,2649.8,2649.5,3.77426]
[1724754809071,1.55153616,2649.7,2649.4,8.6817]
[1724754809375,1.55153616,2649.5,2649.0,8.5186]
[1724754809575,1.66970116,2649.4,2649.0,8.5186]
[1724754809774,1.55153616,2649.2,2649.0,8.5186]
[1724754809975,0.118165,2649.1,2649.0,8.5186]
[1724754810474,0.118165,2649.1,2648.6,8.7797]
[1724754810675,1.55153616,2649.2,2648.7,0.07549861]
[1724754811140,1.66975544,2649.1,2648.6,8.7797]
[1724754811417,1.55153616,2648.7,2648.3,0.0232025]
[1724754811637,7.55172,2648.4,2648.3,0.0232025]
[1724754811781,9.99320827,2648.4,2648.3,0.0232025]
[1724754811979,10.66993928,2648.4,2648.3,0.0232025]
[1724754812221,6.89407928,2648.4,2648.3,0.0232025]
[1724754812385,8.82755301,2648.4,2648.3,0.0232025]
[1724754813405,8.43962045,2648.4,2648.3,0.0232025]
[1724754813603,3.11821928,2648.4,2648.3,0.0232025]
[1724754813803,6.77586,2648.4,2648.3,0.0232025]
[1724754814018,8.43966737,2648.4,2648.3,0.0232025]
[1724754814376,6.8941262,2648.4,2648.3,0.0232025]
[1724754815653,3.1182662,2648.4,2648.3,0.0232025]
[1724754815952,3.77566,2648.6,2648.3,0.0232025]
[1724754816138,3.11826024,2648.5,2648.3,0.0232025]
[1724754816458,3.0,2648.5,2648.3,0.0232025]
[1724754816610,6.77575,2648.5,2648.3,0.0232025]
[1724754817216,7.66999088,2648.4,2648.3,0.0232025]
[1724754819111,14.44585088,2648.4,2648.3,0.0232025]
[1724754819445,14.99585088,2648.4,2648.3,0.0232025]
[1724754820176,15.69585088,2648.4,2648.3,0.0232025]
[1724754820461,28.37572827,2648.4,2648.3,0.0232025]
[1724754821537,24.27438105,2648.4,2648.3,0.0232025]
[1724754822714,24.86635276,2648.4,2648.3,0.0232025]
[1724754823532,11.26199276,2648.4,2648.3,0.0232025]
[1724754823912,10.67002105,2648.4,2648.3,0.0232025]
[1724754824109,10.55172,2648.4,2648.3,0.0232025]
[1724754824609,7.55172,2648.4,2648.3,0.0232025]
[1724754824927,3.77586,2648.4,2648.3,0.0232025]
[1724754825127,7.55172,2648.4,2648.3,0.0232025]
[1724754825337,7.67000649,2648.4,2648.3,0.0232025]
[1724754826221,14.99586649,2648.4,2648.3,0.0232025]
[1724754826690,14.87758,2648.4,2648.3,0.0232025]
[1724754826886,10.67001098,2648.4,2648.3,0.0232025]
[1724754827019,10.55172,2648.4,2648.3,0.0232025]
[1724754827960,11.22000587,2648.4,2648.3,0.0232025]
[1724754828331,19.09721309,2648.4,2648.3,0.0232025]
[1724754828531,15.32135309,2648.4,2648.3,0.0232025]
[1724754828765,3.7763,2648.1,2647.4,8.47386816]
[1724754829035,3.0,2648.0,2647.4,8.47386816]
[1724754829349,8.42720722,2648.4,2647.5,0.84738682]
[1724754829350,4.65134722,2648.4,2647.5,0.84738682]
[1724754829537,4.36740045,2648.7,2647.7,3.77682]
[1724754829853,8.14292045,2648.7,2648.0,3.77637]
[1724754830184,19.5,2649.0,2648.0,3.77635]
[1724754830185,3.77521,2648.9,2648.0,3.77635]
[1724754830338,3.77594,2648.4,2647.6,3.77696]
[1724754830540,3.77602,2648.3,2647.6,3.77696]
[1724754830765,3.77579,2648.5,2647.7,4.154536]
[1724754830966,6.77552,2648.7,2647.8,3.77663]
[1724754831283,3.77602,2648.3,2647.7,0.377696]
[1724754831469,3.77602,2648.3,2647.6,3.777]
[1724754831686,7.55216,2648.3,2647.6,3.777]
[1724754831981,7.55216,2648.3,2647.7,8.8891]
[1724754832185,7.55156,2648.5,2647.7,13.93255]
[1724754832477,3.77572,2648.5,2647.7,10.15571]
[1724754832679,3.77601,2648.3,2647.7,10.15571]
[1724754832884,6.77545,2648.7,2647.9,8.9559]
[1724754833182,3.77558,2648.6,2647.9,8.9559]
[1724754833343,3.77608,2648.3,2647.9,8.9559]
[1724754833785,3.77595,2648.4,2647.9,8.9559]
[1724754834375,3.0,2648.5,2647.9,8.9559]
[1724754835177,3.0,2648.5,2648.0,1.34878638]
[1724754835381,6.77569,2648.6,2648.0,1.273259]
[1724754835689,7.55156,2648.5,2647.9,8.9559]
[1724754836052,3.77617,2648.2,2647.9,8.9559]
[1724754836557,3.77638,2648.1,2647.9,8.9559]
[1724754836756,3.77617,2648.2,2647.9,8.9559]
[1724754836958,3.77594,2648.4,2647.9,8.9559]
[1724754837147,6.77565,2648.6,2647.9,8.9559]
[1724754837349,3.77575,2648.5,2647.9,8.9559]
[1724754837685,6.77565,2648.6,2647.9,12.73246]
[1724754837989,6.77565,2648.6,2647.9,8.9559]
[1724754837990,3.77588,2648.4,2647.9,8.9559]
[1724754838375,3.77616,2648.2,2647.9,8.9559]
[1724754839564,7.55241,2648.2,2647.9,8.9559]
[1724754839888,3.77616,2648.2,2647.9,8.9559]
[1724754840264,3.77629,2648.1,2647.9,8.9559]
[1724754840460,3.77616,2648.2,2647.9,8.9559]
[1724754840867,3.0,2648.6,2647.9,12.73234]
[1724754841061,3.77579,2648.5,2647.9,9.85149]
[1724754841299,3.0,2648.6,2647.9,8.9559]
[1724754841451,3.77629,2648.1,2647.5,9.2414]
[1724754841649,3.77647,2648.0,2647.5,9.2414]
[1724754842299,3.77659,2647.9,2647.5,9.2414]
[1724754842587,3.72647,2648.0,2647.5,9.2414]
[1724754844172,3.77623,2648.2,2647.5,9.2414]
[1724754844638,3.77623,2648.2,2647.5,10.54326]
[1724754844771,3.77623,2648.2,2647.6,9.1114]
[1724754845616,7.55247,2648.2,2647.6,9.1114]
[1724754845821,3.77623,2648.2,2647.6,9.1114]
[1724754845976,3.77643,2648.0,2647.6,9.1114]
[1724754846387,3.77659,2647.9,2647.6,9.1114]
[1724754846710,4.10134722,2648.2,2646.8,3.77805]
[1724754847013,3.77739,2647.4,2646.5,8.7256]
[1724754847202,3.77843,2646.6,2646.5,8.7256]
[1724754847592,3.77829,2646.7,2646.5,8.7256]
[1724754848306,3.77807,2646.9,2646.4,0.1289225]
[1724754848307,7.55714,2646.5,2646.4,0.1289225]
[1724754848515,3.7793,2646.0,2645.3,9.0735]
[1724754848687,3.77914,2646.2,2645.3,14.12338504]
[1724754848884,3.77914,2646.2,2645.3,10.34319504]
[1724754849084,3.0,2646.6,2645.4,1.48795275]
[1724754849321,3.78099,2644.9,2643.9,3.78218]
[1724754849638,3.78099,2644.9,2643.8,0.1289225]
[1724754849639,3.78229,2643.9,2643.8,0.1289225]
[1724754849787,0.07559932,2644.1,2643.8,0.1289225]
[1724754849973,4.80134722,2644.9,2643.8,0.1289225]
[1724754849974,3.78136,2644.6,2643.8,0.1289225]
[1724754850174,3.85713932,2644.5,2643.9,8.5764]
[1724754850370,0.07559932,2644.5,2643.9,8.5764]
[1724754850819,3.07559932,2644.5,2643.9,8.5764]
[1724754851031,9.171,2645.1,2644.0,3.85770982]
[1724754851315,0.07559932,2645.0,2644.3,8.8269]
[1724754851521,3.78092,2644.9,2644.3,8.8269]
[1724754851833,0.07559932,2644.8,2644.3,8.8269]
[1724754852113,3.07559932,2644.8,2644.3,8.8269]
[1724754852273,0.07559932,2644.7,2644.3,8.8269]
[1724754852475,0.07559932,2645.0,2644.3,8.8269]
[1724754852895,3.78013,2645.5,2644.4,3.78144]
[1724754853099,3.78013,2645.5,2644.5,3.7814]
[1724754853304,0.07559932,2645.4,2644.3,8.8269]
[1724754853478,3.78072,2645.0,2644.3,8.8269]
[1724754853802,3.85656932,2644.9,2644.3,8.8269]
[1724754853971,0.07559932,2644.9,2644.3,8.8269]
[1724754854176,0.07559932,2644.9,2644.3,9.70959]
[1724754854420,3.78105,2644.8,2644.3,8.8269]
[1724754854628,0.07559932,2644.7,2644.3,8.8269]
[1724754854854,3.0,2645.1,2644.4,3.78145]
[1724754855018,0.07559932,2645.0,2644.5,3.78142]
[1724754855347,0.07559932,2644.9,2644.6,0.756287]
[1724754855498,0.07559932,2645.0,2644.4,3.78145]
[1724754855700,0.07559932,2645.0,2644.4,5.5465544]
[1724754855902,0.07559932,2645.0,2644.4,1.7651044]
[1724754856140,3.85632932,2645.0,2644.4,1.7651044]
[1724754856338,0.07559932,2645.0,2644.4,1.7651044]
[1724754856544,0.07559932,2645.1,2644.4,1.7651044]
[1724754856702,0.07559932,2645.1,2644.3,12.60851]
[1724754856903,0.07559932,2645.1,2644.3,8.8269]
[1724754857152,3.78119,2644.7,2644.3,8.8269]
[1724754857331,0.07559932,2644.8,2644.3,8.8269]
[1724754857503,6.85633932,2645.0,2644.3,8.8269]
[1724754857846,3.07559932,2645.0,2644.3,8.8269]
[1724754858140,3.78127,2644.7,2644.3,8.8269]
[1724754858350,0.07559932,2644.6,2644.3,8.8269]
[1724754858531,3.85689932,2644.6,2644.3,8.8269]
[1724754858712,0.07559932,2644.6,2644.3,8.8269]
[1724754858912,3.0,2645.0,2644.3,8.8269]
[1724754859112,0.07559932,2645.0,2644.4,3.85710303]
[1724754859336,0.07559932,2645.0,2644.3,9.70959]
[1724754859644,3.78063,2645.1,2644.3,9.70959]
[1724754859847,0.07559932,2645.0,2644.3,8.8269]
[1724754860030,3.78105,2644.8,2644.3,8.8269]
[1724754860240,3.7814,2644.6,2644.3,8.8269]
[1724754860407,3.78144,2644.5,2644.3,8.8269]
[1724754860754,3.78157,2644.4,2644.3,8.8269]
[1724754860906,0.07559932,2644.4,2644.3,8.8269]
[1724754861307,0.07559932,2644.6,2644.3,8.8269]
[1724754861856,0.07559932,2645.0,2644.3,8.8269]
[1724754862194,0.07559932,2645.1,2644.3,13.49121]
[1724754862302,3.07559932,2645.1,2644.4,3.85717952]
[1724754862503,0.07559932,2645.1,2644.4,1.73483895]
[1724754863031,0.07559932,2645.2,2644.4,1.73483895]
[1724754863239,3.78058,2645.1,2644.5,1.4343339]
[1724754863422,3.78058,2645.1,2644.5,1.50995053]
[1724754863634,3.78058,2645.1,2644.5,1.4343339]
[1724754864308,3.78082,2645.0,2644.5,1.4343339]
[1724754864508,3.78058,2645.1,2644.5,1.4343339]
[1724754864818,7.56127,2645.1,2644.5,1.4343339]
[1724754865035,3.85633932,2645.0,2644.5,1.4343339]
[1724754865240,3.78087,2644.9,2644.3,8.8269]
[1724754865846,6.78007,2645.5,2644.3,8.8269]
[1724754865847,3.78135,2644.6,2644.3,8.8269]
[1724754866047,3.78179,2644.3,2643.9,9.3366]
[1724754866222,0.07559932,2644.2,2643.9,9.3366]
[1724754866420,3.78214,2644.0,2643.9,9.3366]
[1724754866654,0.07559932,2644.7,2643.9,9.3366]
[1724754866872,3.78156,2644.5,2643.9,9.3366]
[1724754867031,3.0,2644.8,2643.9,9.3366]
[1724754867032,0.19403877,2644.4,2643.9,9.3366]
[1724754867205,3.78181,2644.3,2643.9,9.3366]
[1724754867417,3.78202,2644.1,2643.9,9.3366]
[1724754867718,7.56458,2643.9,2643.8,0.1289225]
[1724754868124,11.46533992,2643.9,2643.8,0.1289225]
[1724754868316,18.24762992,2643.9,2643.8,0.1289225]
[1724754868745,14.46533992,2643.9,2643.8,0.1289225]
[1724754869248,3.90077555,2643.9,2643.8,0.1289225]
[1724754869456,3.78215,2644.0,2643.8,0.1289225]
[1724754869658,7.64017932,2643.9,2643.8,0.1289225]
[1724754869901,7.75865236,2643.9,2643.8,0.1289225]
[1724754870606,0.11847304,2643.9,2643.8,0.1289225]
[1724754870904,3.0,2644.4,2643.8,0.1289225]
[1724754870905,3.78198,2644.2,2643.8,0.1289225]
[1724754871086,3.78197,2644.2,2643.8,0.1289225]
[1724754871294,0.02559932,2644.3,2643.8,1.03740475]
[1724754871479,0.02559932,2644.6,2643.9,0.47363826]
[1724754871664,3.78172,2644.3,2643.9,0.47363826]
[1724754871865,3.78201,2644.1,2643.8,0.1289225]
[1724754872067,3.78161,2644.4,2643.8,0.1289225]
[1724754872390,0.02559932,2644.3,2643.8,1.03740475]
[1724754872560,0.02559932,2644.3,2643.8,0.1289225]
[1724754872760,3.78127,2644.7,2643.9,3.85791598]
[1724754873009,0.14404228,2644.6,2643.9,3.85791598]
[1724754873211,0.11844296,2644.5,2643.9,1.74814083]
[1724754873518,3.78165,2644.4,2643.9,1.67250485]
[1724754873663,3.78165,2644.4,2643.8,0.1289225]
[1724754873664,3.78204,2644.1,2643.8,0.1289225]
[1724754874107,3.78147,2644.5,2643.8,0.1289225]
[1724754874108,3.78228,2644.0,2643.8,0.1289225]
[1724754874314,3.78147,2644.5,2643.8,0.1289225]
[1724754874315,7.56458,2643.9,2643.8,0.1289225]
[1724754874468,7.70864828,2643.9,2643.8,0.1289225]
[1724754875114,3.92635828,2643.9,2643.8,0.1289225]
[1724754875414,0.14406828,2643.9,2643.8,0.1289225]
[1724754875570,3.80788932,2643.9,2643.8,0.1289225]
[1724754875771,7.70863999,2643.9,2643.8,0.1289225]
[1724754875998,0.14405999,2643.9,2643.8,0.1289225]
[1724754876217,0.11846067,2643.9,2643.8,0.1289225]
[1724754877099,3.90075067,2643.9,2643.8,0.1289225]
[1724754877335,3.92634999,2643.9,2643.8,0.1289225]
[1724754877535,0.14405999,2643.9,2643.8,0.1289225]
[1724754877788,0.11846067,2643.9,2643.8,0.1289225]
[1724754877908,0.11846067,2643.9,2643.8,9.2010225]
[1724754878249,0.11846067,2643.9,2643.8,10.12362475]
[1724754879154,0.11844467,2643.9,2643.8,10.12362475]
[1724754880054,0.11844467,2643.9,2643.8,21.81078307]
[1724754880253,3.78072,2645.0,2644.4,9.0721]
[1724754880546,7.28,2645.6,2644.4,9.0721]
[1724754880547,0.11842284,2644.9,2644.5,0.07562123]
[1724754880749,0.11842284,2644.8,2644.5,0.07562123]
[1724754880957,0.11842284,2644.7,2644.5,0.07562123]
[1724754881162,0.11842284,2644.6,2644.5,1.36855235]
[1724754881662,0.11842284,2644.6,2644.5,10.44065235]
[1724754881866,0.11842284,2644.6,2644.5,9.14772123]
[1724754882722,3.7806,2645.1,2644.5,9.14772123]
[1724754882927,0.11841113,2645.0,2644.5,9.14772123]
[1724754883174,0.11841113,2644.9,2644.5,9.14772123]
[1724754883369,0.11841113,2644.8,2644.5,10.81880735]
[1724754883665,3.80619932,2645.1,2644.5,10.81880735]
[1724754883666,0.11841113,2644.7,2644.5,10.81880735]
[1724754883868,0.11841113,2644.6,2644.5,10.81880735]
[1724754884050,0.11841113,2644.6,2644.5,9.14772123]
[1724754885557,3.80561932,2645.5,2644.5,9.14772123]
[1724754885871,3.80561932,2645.5,2644.5,12.92902123]
[1724754885872,3.7803,2645.3,2644.5,12.92902123]
[1724754886026,0.11839666,2645.2,2644.7,3.78114]
[1724754886225,0.11839666,2645.1,2644.8,0.07561076]
[1724754886525,0.11839666,2645.0,2644.8,0.07561076]
[1724754886721,0.11839666,2644.9,2644.8,0.07561076]
[1724754887152,3.7798,2645.7,2644.9,3.78076]
[1724754887355,3.78009,2645.5,2644.9,0.0756051]
[1724754887567,0.11839032,2645.4,2644.9,3.8564551]
[1724754887769,0.11839032,2645.3,2644.9,0.0756051]
[1724754887968,0.11839032,2645.2,2644.9,0.0756051]
[1724754888174,0.11839032,2645.1,2644.9,0.0756051]
[1724754888332,0.02559932,2645.6,2644.9,0.0756051]
[1724754888532,3.89838963,2645.5,2644.9,3.8564551]
[1724754888732,0.11838963,2645.4,2644.9,3.8564551]
[1724754888958,3.77976,2645.7,2645.0,12.29388]
[1724754888959,0.11838963,2645.3,2645.0,12.29388]
[1724754889142,0.11838963,2645.2,2645.1,3.78057]
[1724754889444,15.18101832,2646.4,2645.5,3.77986]
[1724754889445,3.77908,2646.2,2645.5,3.77986]
[1724754889658,0.14398033,2646.1,2645.5,3.77986]
[1724754889828,0.11838101,2646.0,2645.6,3.77984]
[1724754890025,0.11838101,2645.9,2645.6,3.85542732]
[1724754890395,1.14957315,2647.5,2645.7,0.5655857]
[1724754890681,2.61518654,2647.7,2647.1,3.7777]
[1724754890682,0.02559932,2647.7,2647.1,3.7777]
[1724754890885,0.02559932,2648.1,2647.3,3.77733]
[1724754891030,0.02559932,2648.1,2647.2,1.37323658]
[1724754891031,3.77652,2648.0,2647.2,3.77752]
[1724754891231,0.02559932,2647.9,2647.0,9.1993]
[1724754891542,3.77625,2648.2,2647.2,3.77757]
[1724754891748,3.77625,2648.2,2647.5,8.9219]
[1724754892058,3.77625,2648.2,2647.6,0.07553063]
[1724754892436,7.55184,2648.4,2647.5,8.9219]
[1724754892769,3.77644,2648.0,2647.5,8.9219]
[1724754892975,3.7762,2648.2,2647.5,8.9219]
[1724754893152,3.77641,2648.1,2647.5,8.9219]
[1724754893353,3.80200932,2648.1,2647.5,8.9219]
[1724754893763,0.02559932,2648.1,2647.5,8.9219]
[1724754893932,3.77648,2648.0,2647.5,8.9219]
[1724754894134,0.02559932,2647.9,2647.5,8.9219]
[1724754894358,0.02559932,2647.9,2647.0,8.9219]
[1724754894583,3.77742,2647.4,2646.7,8.9219]
[1724754894882,3.77781,2647.1,2646.3,9.3017]
[1724754895035,3.80353932,2647.0,2646.3,9.3017]
[1724754895471,0.02559932,2647.0,2646.5,3.77855]
[1724754895678,3.77698,2647.7,2646.8,3.77809]
[1724754895836,3.77751,2647.3,2646.5,5.086545]
[1724754896040,0.02559932,2647.2,2646.5,3.77847]
[1724754896239,0.02559932,2647.2,2646.5,5.086487]
[1724754896467,0.02559932,2647.4,2646.8,3.77806]
[1724754896676,0.02559932,2647.7,2646.8,3.77806]
[1724754896880,3.7771,2647.6,2646.9,9.1809]
[1724754897180,0.02559932,2647.7,2646.9,12.95887]
[1724754897181,3.80256932,2647.7,2646.9,12.95887]
[1724754897387,3.77729,2647.4,2646.9,9.1809]
[1724754898239,7.55355,2647.8,2646.9,12.95879]
[1724754898441,0.02559932,2647.7,2647.0,3.77776]
[1724754899272,0.02559932,2647.7,2646.9,9.1809]
[1724754899471,3.7771,2647.6,2646.9,9.1809]
[1724754899681,3.80286932,2647.5,2646.9,9.1809]
[1724754900167,0.02559932,2647.5,2646.9,9.1809]
[1724754900575,3.77648,2648.0,2646.4,12.91728]
[1724754900576,3.77781,2647.1,2646.4,12.91728]
[1724754900750,3.77809,2646.9,2646.4,9.1386]
[1724754900947,0.02559932,2646.8,2646.4,9.1386]
[1724754901184,0.02559932,2646.8,2643.8,3.19055767]
[1724754901185,3.77868,2646.5,2646.0,9.1852]
[1724754901385,0.02559932,2646.4,2646.0,9.1852]
[1724754901882,3.77811,2646.9,2646.1,3.85460916]
[1724754902083,3.7783,2646.7,2646.0,9.1852]
[1724754902243,0.02559932,2647.2,2646.1,3.77913]
[1724754902445,0.02559932,2647.2,2646.0,9.1852]
[1724754902446,3.77815,2646.8,2646.0,12.96438]
[1724754902693,3.77815,2646.8,2646.0,9.1852]
[1724754902694,3.77852,2646.6,2646.0,9.1852]
[1724754903003,3.77804,2646.9,2646.0,9.1852]
[1724754903150,7.58202932,2646.8,2646.0,12.96434]
[1724754903478,3.77829,2646.7,2646.0,12.96434]
[1724754903647,0.02559932,2646.7,2646.0,12.96434]
[1724754903846,3.77851,2646.6,2646.0,9.1852]
[1724754904048,3.80416932,2646.5,2646.0,9.1852]
[1724754904347,3.77857,2646.5,2646.0,9.1852]
[1724754904584,0.02559932,2646.6,2646.0,12.9644]
[1724754905159,0.02559932,2646.6,2646.0,9.1852]
[1724754905486,3.7789,2646.3,2645.5,3.77995]
[1724754905692,0.02559932,2646.6,2645.3,4.158259]
[1724754905693,3.77929,2646.0,2645.6,8.9395]
[1724754906049,3.77929,2646.0,2645.3,9.80232591]
[1724754906246,3.77959,2645.8,2645.3,8.9395]
[1724754906447,3.77905,2646.2,2645.4,3.85564811]
[1724754906701,3.80485932,2646.1,2645.4,4.674]
[1724754906859,3.77928,2646.0,2645.3,12.71978]
[1724754907055,0.02559932,2646.1,2645.4,3.85572169]
[1724754907349,0.02559932,2646.1,2645.4,3.85564169]
[1724754907551,0.02559932,2646.1,2645.4,7.63570169]
[1724754907859,3.77847,2646.6,2646.0,8.6842]
[1724754907860,3.77849,2646.6,2646.0,8.6842]
[1724754908060,11.05775,2647.1,2646.0,8.6842]
[1724754908061,3.77837,2646.7,2646.0,8.6842]
[1724754908298,3.77844,2646.6,2646.0,8.6842]
[1724754908450,3.77875,2646.4,2646.0,8.6842]
[1724754908977,3.77845,2646.6,2646.0,8.6842]
[1724754909188,3.77834,2646.7,2646.0,8.6842]
[1724754909370,3.77843,2646.6,2646.0,8.6842]
[1724754909572,3.77819,2646.8,2646.0,12.4634]
[1724754909771,0.02559932,2646.7,2646.0,8.6842]
[1724754909973,3.77879,2646.4,2646.0,8.6842]
[1724754910184,3.80446932,2646.3,2646.0,8.6842]
[1724754910421,3.779,2646.2,2645.6,9.122]
[1724754910556,3.77941,2646.0,2645.2,14.02748601]
[1724754910755,0.02559932,2646.1,2645.3,3.78015]
[1724754910961,3.0,2646.9,2645.7,12.90161]
[1724754911163,3.77851,2646.6,2645.7,12.90166]
[1724754911414,3.80375932,2646.8,2645.9,3.77933]
[1724754911689,3.80375932,2646.8,2646.2,3.77892]
[1724754911690,0.02559932,2646.8,2646.2,3.77892]
[1724754911871,0.02559932,2646.9,2646.3,0.07557036]
[1724754912270,0.02559932,2647.3,2646.3,0.07556842]
[1724754912469,3.77716,2647.5,2646.8,3.77813]
[1724754912792,0.02559932,2647.4,2647.0,9.122]
[1724754913000,3.80296932,2647.4,2647.0,9.122]
[1724754913198,3.77766,2647.2,2647.0,9.122]
[1724754913400,3.77786,2647.0,2646.5,9.1462]
[1724754913560,3.77737,2647.4,2646.5,12.92468]
[1724754913764,3.77776,2647.1,2646.5,9.1462]
[1724754914267,3.77737,2647.4,2646.6,3.77833]
[1724754914503,0.02559932,2647.3,2646.6,3.77833]
[1724754914864,0.02559932,2647.3,2646.6,3.85397637]
[1724754915012,0.02559932,2647.5,2646.7,3.77824]
[1724754915317,6.77705,2647.6,2646.8,9.22174663]
[1724754915500,0.02559932,2647.7,2647.0,3.77778]
[1724754915824,3.77651,2648.0,2647.3,9.1462]
[1724754915983,3.77651,2648.0,2647.4,0.07553519]
[1724754916318,3.77703,2647.6,2647.3,9.1462]
[1724754916524,3.77737,2647.4,2646.9,9.4258]
[1724754917317,3.77745,2647.3,2646.9,9.4258]
[1724754917474,3.77737,2647.4,2646.9,9.4258]
[1724754917677,0.02559932,2647.5,2646.9,9.4258]
[1724754917914,3.77708,2647.6,2646.9,9.4258]
[1724754918422,3.80277932,2647.5,2646.9,11.124007]
[1724754918637,3.77738,2647.4,2646.9,9.4258]
[1724754918993,3.77678,2647.8,2647.0,0.07554886]
[1724754919343,0.02559932,2648.0,2647.0,7.55552]
[1724754919634,3.77665,2647.9,2647.2,3.77756]
[1724754919803,3.77653,2648.0,2647.4,8.5369]
[1724754920140,3.77618,2648.2,2647.5,0.07553397]
[1724754920438,7.28,2648.8,2647.7,8.6726]
[1724754920643,3.77594,2648.4,2647.8,0.07552024]
[1724754920791,3.77567,2648.6,2647.8,3.85222024]
[1724754920996,0.02559932,2648.5,2647.7,8.6726]
[1724754921337,3.77615,2648.2,2647.7,8.6726]